bitfinex/quotes_ETHUSD_20251122
["timestamp","ask_amount","ask_price","bid_price","bid_amount"]
[1763822840005,0.405504,2739.1,2738.5,0.03651634]
[1763822840206,0.405504,2739.1,2738.4,0.8784]
[1763822840400,0.405504,2739.1,2738.5,0.4387]
[1763822840902,0.124,2739.0,2738.5,0.89172948]
[1763822841101,0.479,2739.4,2738.5,0.89172948]
[1763822841345,0.124,2739.3,2738.6,0.4387]
[1763822841648,0.002,2739.4,2738.6,0.4387]
[1763822841649,0.124,2739.2,2738.6,0.4387]
[1763822841855,0.124,2739.1,2738.6,0.4387]
[1763822842156,0.124,2739.1,2738.6,4.90979167]
[1763822842341,0.124,2739.1,2739.0,0.4387]
[1763822842513,0.002,2739.4,2739.0,0.4387]
[1763822842716,0.002,2739.4,2739.3,0.5422]
[1763822842916,0.126,2739.4,2738.6,4.47109167]
[1763822843213,0.126,2739.4,2738.7,0.94587295]
[1763822843614,0.126,2739.4,2738.7,0.4387]
[1763822844952,0.603,2739.4,2738.5,0.4387]
[1763822845567,0.477,2739.3,2738.5,0.4387]
[1763822845728,0.477,2739.3,2738.4,0.001]
[1763822846966,0.90699264,2739.1,2738.4,0.001]
[1763822847263,1.43297156,2739.0,2738.4,0.001]
[1763822847443,0.405504,2739.2,2738.4,0.4397]
[1763822847645,0.405504,2739.1,2738.4,0.001]
[1763822847841,0.124,2739.0,2738.4,0.001]
[1763822849454,0.405504,2739.1,2738.4,0.4397]
[1763822849659,0.124,2738.9,2738.4,0.4397]
[1763822849846,0.124,2738.9,2738.4,0.001]
[1763822850020,0.6638,2738.8,2738.4,0.001]
[1763822850439,0.1868,2738.8,2738.4,0.001]
[1763822850770,0.4656,2738.5,2738.4,0.001]
[1763822851271,0.9426,2738.5,2738.4,0.001]
[1763822853342,1.348104,2738.5,2738.4,0.001]
[1763822854172,0.9426,2738.5,2738.4,0.001]
[1763822854460,0.124,2738.5,2738.4,0.001]
[1763822854660,0.90699264,2738.6,2738.4,0.001]
[1763822854865,0.6638,2738.8,2738.4,0.001]
[1763822855170,0.124,2738.7,2738.4,0.001]
[1763822855365,0.124,2738.7,2738.6,0.4387]
[1763822856067,0.82965844,2739.1,2738.6,0.4387]
[1763822856273,0.124,2739.0,2738.6,0.4387]
[1763822857152,0.126,2739.0,2738.6,0.4387]
[1763822857542,0.002,2739.0,2738.9,0.4387]
[1763822857740,0.126,2739.0,2738.9,0.4387]
[1763822858479,0.126,2739.0,2738.9,0.8774]
[1763822860451,0.126,2739.0,2738.9,0.4387]
[1763822862455,0.5992,2739.0,2738.4,0.001]
[1763822862782,0.1966,2738.9,2738.4,0.001]
[1763822862969,0.4535,2738.8,2738.4,0.001]
[1763822863164,0.4732,2738.5,2738.4,0.001]
[1763822863581,0.9267,2738.5,2738.4,0.001]
[1763822864080,0.405504,2738.8,2738.4,0.4397]
[1763822864256,0.405504,2738.8,2738.4,0.001]
[1763822864457,0.4535,2738.7,2738.4,0.001]
[1763822865169,0.124,2738.6,2738.4,0.001]
[1763822865871,0.9267,2738.5,2738.4,0.001]
[1763822866972,0.4732,2738.5,2738.4,0.001]
[1763822867166,0.124,2738.6,2738.4,0.001]
[1763822867372,0.5972,2738.5,2738.4,0.001]
[1763822867576,5.33567564,2738.5,2738.4,0.001]
[1763822867774,6.40463695,2738.5,2738.4,0.001]
[1763822868557,7.92565995,2738.5,2738.4,0.001]
[1763822869588,9.07314595,2738.5,2738.4,0.001]
[1763822869785,3.43215795,2738.5,2738.4,0.001]
[1763822870094,2.23919664,2738.5,2738.4,0.001]
[1763822870302,2.36319664,2738.5,2738.4,0.001]
[1763822871069,0.1966,2738.9,2738.4,0.001]
[1763822871070,0.4535,2738.8,2738.4,0.001]
[1763822871276,0.124,2738.7,2738.4,0.001]
[1763822871759,0.002,2739.3,2738.4,0.001]
[1763822871760,0.90699264,2739.4,2738.4,0.4972]
[1763822872082,0.405504,2739.2,2738.6,0.4699]
[1763822872278,0.57292522,2739.2,2738.6,0.4699]
[1763822872460,0.124,2739.3,2738.7,0.4962]
[1763822876223,0.124,2739.3,2739.2,0.4699]
[1763822877198,0.002,2739.5,2739.2,0.9661]
[1763822877396,0.002,2739.5,2739.4,0.4699]
[1763822877610,0.126,2739.5,2739.4,0.4699]
[1763822877922,0.126,2739.5,2739.4,0.9661]
[1763822878507,0.126,2739.5,2739.4,0.4699]
[1763822878726,0.126,2739.5,2738.8,0.4962]
[1763822878727,0.8679,2739.5,2738.8,0.4962]
[1763822878928,0.0045,2739.3,2738.6,0.4962]
[1763822881550,0.126,2739.5,2739.2,0.6641]
[1763822881750,0.124,2739.4,2739.2,0.6641]
[1763822881946,0.124,2739.4,2739.2,1.1603]
[1763822882142,0.124,2739.4,2739.3,0.4699]
[1763822882544,0.124,2739.4,2739.3,0.9661]
[1763822882840,0.002,2739.5,2739.3,0.9661]
[1763822883043,0.002,2739.5,2739.4,1.44719288]
[1763822883239,0.002,2739.5,2739.4,0.9661]
[1763822884946,0.002,2739.5,2739.4,4.6165344]
[1763822885457,0.002,2739.7,2739.4,8.2669688]
[1763822885630,0.002,2739.7,2739.6,0.4699]
[1763822886046,0.002,2739.7,2739.6,0.9455]
[1763822886930,0.002,2739.7,2739.6,5.42030478]
[1763822887459,0.4586,2741.7,2739.7,1.350204]
[1763822887663,0.124,2741.3,2740.0,0.974604]
[1763822888024,0.124,2741.3,2740.0,1.450204]
[1763822888762,0.124,2741.3,2741.2,0.4691]
[1763822889279,0.8099,2741.3,2740.4,0.4756]
[1763822889439,0.8099,2741.3,2740.5,0.4756]
[1763822889976,0.5339679,2741.9,2741.2,0.4691]
[1763822890183,4.340105,2743.0,2741.8,0.4691]
[1763822890343,5.55053744,2743.1,2741.8,0.4691]
[1763822890664,0.90699264,2743.0,2741.3,0.4756]
[1763822891032,0.90699264,2743.0,2741.4,3.64777121]
[1763822891231,0.6552,2743.1,2741.5,5.76627456]
[1763822891435,0.124,2743.0,2741.7,0.505504]
[1763822891643,0.124,2743.0,2741.8,0.4756]
[1763822892066,0.124,2743.0,2741.8,0.5756]
[1763822892281,0.6397,2742.9,2741.8,0.4756]
[1763822892479,0.1811,2742.9,2741.8,0.4756]
[1763822892768,0.124,2742.8,2741.8,0.4756]
[1763822892931,0.124,2742.8,2741.9,3.64710602]
[1763822893131,0.124,2742.8,2742.0,0.8878706]
[1763822893332,0.124,2742.7,2742.0,0.8878706]
[1763822893536,0.4586,2743.5,2742.8,0.4691]
[1763822893733,0.124,2743.4,2742.8,0.4691]
[1763822893930,0.124,2743.4,2741.8,0.1885]
[1763822893931,0.4661,2742.9,2741.8,0.1885]
[1763822894166,0.4661,2742.9,2741.8,0.6641]
[1763822894370,0.923,2742.9,2741.8,0.6641]
[1763822894567,0.124,2742.8,2741.9,0.4756]
[1763822894866,0.124,2742.7,2741.9,0.4756]
[1763822895069,0.002,2743.0,2742.0,7.29394602]
[1763822895248,0.124,2742.6,2742.1,0.7769546]
[1763822895443,0.124,2742.6,2742.1,1.2525546]
[1763822895755,0.124,2742.6,2742.5,0.4691]
[1763822895960,0.002,2743.0,2742.5,0.4691]
[1763822896162,0.002,2743.0,2742.9,0.4691]
[1763822896342,0.002,2743.0,2742.6,0.4756]
[1763822896536,0.124,2742.9,2742.6,0.4756]
[1763822896751,0.483,2742.7,2741.8,0.1885]
[1763822896982,0.483,2742.7,2741.8,0.6641]
[1763822897275,0.7439,2742.7,2741.8,0.6641]
[1763822897439,0.2609,2742.6,2741.6,0.1885]
[1763822897857,0.405504,2742.5,2741.4,0.4756]
[1763822898379,0.4586,2742.4,2741.4,0.4756]
[1763822898778,0.4586,2742.4,2741.1,0.1885]
[1763822898946,0.4586,2742.4,2741.1,0.6641]
[1763822899142,0.4586,2742.4,2741.1,4.31223896]
[1763822899342,0.4586,2742.4,2741.2,0.9068239]
[1763822900757,0.4586,2742.4,2741.2,0.4312239]
[1763822900959,0.4586,2742.4,2741.3,0.4756]
[1763822901993,0.405504,2742.3,2741.1,0.1885]
[1763822902281,0.124,2742.2,2741.1,4.31226907]
[1763822902458,0.5826,2742.2,2741.1,4.31226907]
[1763822902957,0.4586,2742.1,2741.1,3.83666907]
[1763822903157,0.57219282,2742.6,2741.3,3.64790427]
[1763822903381,0.57219282,2742.6,2742.0,0.4691]
[1763822903702,0.124,2742.5,2742.0,0.9447]
[1763822904401,0.4586,2742.8,2742.0,0.4691]
[1763822904589,0.124,2742.7,2742.1,0.4756]
[1763822904990,0.6397,2742.9,2742.1,0.4756]
[1763822905183,0.124,2742.6,2742.1,0.4756]
[1763822905367,0.6397,2742.9,2742.1,0.4756]
[1763822905573,0.002,2743.0,2742.1,0.4756]
[1763822905574,0.002,2743.0,2742.1,4.53466916]
[1763822905886,0.124,2742.9,2742.1,4.53466916]
[1763822906199,0.124,2742.9,2742.2,0.4756]
[1763822906905,0.002,2743.0,2742.2,0.4756]
[1763822907103,0.124,2742.9,2742.2,0.4756]
[1763822907303,0.124,2742.9,2742.0,4.12254953]
[1763822908096,0.4586,2742.8,2742.0,0.4756]
[1763822908302,0.124,2742.7,2742.0,0.4756]
[1763822908995,0.124,2742.6,2742.0,0.4756]
[1763822909570,0.4586,2742.8,2742.0,0.4756]
[1763822909776,0.002,2743.0,2742.0,8.54645433]
[1763822910011,0.124,2742.9,2742.0,8.54645433]
[1763822910194,0.124,2742.9,2742.1,0.4756]
[1763822910789,0.4586,2742.8,2742.1,0.4756]
[1763822911821,0.4586,2742.8,2741.7,0.4756]
[1763822912798,0.124,2742.7,2741.7,0.4756]
[1763822913810,0.4606,2742.8,2741.8,3.64723904]
[1763822913982,0.124,2742.7,2741.8,3.64723904]
[1763822914398,0.124,2742.7,2741.9,0.4756]
[1763822915295,0.002,2742.8,2742.6,0.4691]
[1763822915496,0.002,2742.8,2742.7,1.88159664]
[1763822915818,0.002,2742.8,2742.7,5.98033886]
[1763822916390,0.002,2742.8,2742.7,4.56784222]
[1763822916694,0.002,2742.8,2742.7,5.38924321]
[1763822917209,0.002,2742.8,2742.7,5.48924321]
[1763822917609,0.002,2742.8,2742.7,6.39623585]
[1763822919625,0.002,2742.8,2742.7,1.74320099]
[1763822919829,0.002,2742.8,2742.7,4.56784222]
[1763822923330,0.002,2742.8,2742.7,5.57483486]
[1763822923895,0.002,2742.8,2742.7,5.47483486]
[1763822925350,0.002,2742.8,2742.7,11.06124581]
[1763822925497,0.002,2743.3,2743.2,0.1]
[1763822925840,0.002,2743.6,2743.5,0.505504]
[1763822926018,0.002,2743.6,2743.5,0.997404]
[1763822926223,0.002,2743.6,2743.5,1.67174366]
[1763822926397,0.002,2743.6,2743.5,2.5787363]
[1763822926795,0.002,2743.6,2743.5,1.67174366]
[1763822927326,0.002,2743.6,2743.5,6.22371534]
[1763822927898,0.002,2745.0,2744.1,0.1]
[1763822928133,0.002,2745.0,2744.2,0.405504]
[1763822928335,0.002,2745.0,2744.2,1.169504]
[1763822928851,0.002,2745.0,2744.9,0.4919]
[1763822929050,0.002,2745.0,2744.6,0.5839]
[1763822929203,0.002,2745.0,2744.7,3.64338543]
[1763822929401,0.002,2745.0,2744.9,0.4919]
[1763822929903,0.002,2745.0,2744.9,1.32815709]
[1763822930436,0.002,2745.0,2744.9,1.81205709]
[1763822930844,0.002,2745.0,2744.9,1.32815709]
[1763822931028,0.002,2745.0,2744.9,1.81205709]
[1763822931428,0.002,2745.0,2744.9,5.45517705]
[1763822932618,0.002,2745.0,2744.9,1.81205709]
[1763822932818,0.002,2745.0,2744.9,0.9758]
[1763822933448,0.4911,2745.0,2744.5,0.124]
[1763822933619,0.4911,2745.0,2744.4,3.64374125]
[1763822933804,0.4911,2745.0,2744.3,3.64386776]
[1763822934012,0.1932,2744.9,2744.3,4.07465454]
[1763822934543,0.1932,2744.9,2744.3,0.43078678]
[1763822934706,0.1932,2744.9,2744.2,4.30801695]
[1763822934707,0.6744,2744.9,2744.2,3.82410567]
[1763822935143,0.4812,2744.8,2744.0,3.82441486]
[1763822935343,0.4812,2744.8,2744.1,0.90699264]
[1763822935709,0.4812,2744.8,2744.0,0.1801]
[1763822936110,0.4812,2744.8,2744.0,3.82438906]
[1763822936316,0.4812,2744.8,2744.0,4.61968654]
[1763822936921,0.002,2745.0,2744.1,0.4839]
[1763822937161,0.1526,2744.9,2744.1,0.4839]
[1763822937453,0.002,2745.0,2744.2,7.28809852]
[1763822937961,0.1526,2744.9,2744.1,7.28835223]
[1763822938137,0.1526,2744.9,2744.2,0.53150771]
[1763822938330,0.4832,2745.0,2744.2,1.01540771]
[1763822938331,0.002,2745.0,2744.2,1.01540771]
[1763822938517,0.1526,2744.9,2744.2,1.01540771]
[1763822939039,0.6338,2744.9,2744.2,1.01540771]
[1763822939417,0.6338,2744.9,2744.2,4.65936889]
[1763822940242,0.6338,2744.9,2744.2,8.30341815]
[1763822940454,0.002,2745.0,2744.3,1.31562408]
[1763822940771,0.002,2745.0,2744.5,0.1]
[1763822941183,0.002,2745.0,2744.6,0.4839]
[1763822941977,0.002,2745.0,2744.9,0.4919]
[1763822942271,0.002,2745.0,2744.9,0.9758]
[1763822943780,0.002,2745.0,2744.9,4.61891996]
[1763822943976,0.002,2745.0,2744.9,4.75535115]
[1763822944141,0.002,2745.0,2744.9,6.0314166]
[1763822944347,0.002,2745.0,2744.9,9.8784166]
[1763822945456,0.002,2745.3,2745.2,5.25949664]
[1763822945664,0.002,2745.3,2745.2,14.59899222]
[1763822945869,0.002,2745.6,2745.5,5.25949664]
[1763822946073,0.002,2745.6,2745.5,5.71499664]
[1763822946275,0.002,2746.7,2745.8,6.45694317]
[1763822946479,0.6423,2747.3,2746.6,0.4555]
[1763822946636,0.002,2747.4,2746.7,0.405504]
[1763822946840,0.002,2747.4,2746.7,0.856804]
[1763822947040,0.002,2747.4,2746.8,0.64567505]
[1763822947440,0.002,2747.4,2746.7,0.856804]
[1763822947647,0.002,2747.4,2746.8,7.28119994]
[1763822948054,0.002,2747.4,2746.8,3.64059997]
[1763822948253,0.002,2747.4,2746.9,0.405504]
[1763822948460,0.002,2747.4,2747.0,0.1]
[1763822948662,0.002,2747.4,2747.0,0.78324999]
[1763822948901,0.002,2747.4,2747.3,0.4555]
[1763822949349,0.002,2747.4,2747.3,0.9068]
[1763822949548,0.002,2747.4,2747.3,4.54673739]
[1763822949755,0.002,2747.4,2747.3,0.4555]
[1763822950477,0.4801,2747.4,2746.6,5.44995053]
[1763822950754,0.0014,2747.3,2746.6,0.90699264]
[1763822950954,0.0014,2747.3,2746.4,3.83439372]
[1763822951180,0.4951,2747.3,2746.4,0.1933]
[1763822951377,0.4951,2747.3,2746.4,1.49614322]
[1763822951597,0.4951,2747.3,2746.4,0.39585058]
[1763822951750,0.4951,2747.3,2746.4,4.03696424]
[1763822951957,0.002,2747.4,2746.6,0.1]
[1763822952186,0.4957,2747.4,2746.4,0.39585058]
[1763822952398,0.4957,2747.4,2746.2,3.64135923]
[1763822952606,0.4957,2747.4,2746.0,4.09293325]
[1763822952809,0.4957,2747.4,2746.1,0.90699264]
[1763822953122,0.4957,2747.4,2745.8,3.83520233]
[1763822953425,0.4957,2747.4,2745.9,0.90699264]
[1763822953716,0.4957,2747.4,2745.9,5.0229436]
[1763822953941,0.4957,2747.4,2745.9,4.11599894]
[1763822954243,0.4957,2747.4,2746.0,0.5513]
[1763822954520,0.124,2747.3,2746.0,0.5513]
[1763822955022,0.4937,2747.2,2746.0,0.5513]
[1763822955322,0.6177,2747.2,2746.1,0.83090921]
[1763822955621,0.6177,2747.2,2745.7,3.64202824]
[1763822955790,0.4937,2747.1,2745.7,3.64202824]
[1763822955990,0.4937,2747.1,2745.6,0.4513]
[1763822956287,0.4937,2747.1,2745.7,0.90699264]
[1763822956821,0.4937,2747.1,2745.8,0.48771925]
[1763822957118,0.124,2747.0,2745.8,0.5513]
[1763822957511,0.1097,2746.9,2745.9,0.505504]
[1763822957686,0.002,2747.4,2745.9,0.505504]
[1763822957687,0.1886,2747.2,2746.1,0.405504]
[1763822957886,0.1886,2747.2,2746.2,0.1]
[1763822958121,0.6823,2747.2,2746.2,0.1]
[1763822958295,0.6823,2747.2,2746.2,0.5513]
[1763822958720,0.4937,2747.1,2746.1,0.1933]
[1763822959037,0.4937,2747.1,2746.0,3.64166059]
[1763822959235,0.4937,2747.1,2746.0,4.41512588]
[1763822959727,1.40069264,2747.1,2745.6,0.90699264]
[1763822959935,0.4937,2747.1,2745.7,0.4513]
[1763822960084,0.4937,2747.1,2746.0,1.00699264]
[1763822960288,0.4937,2747.1,2746.1,0.405504]
[1763822960516,0.4937,2747.1,2746.1,0.598804]
[1763822960888,0.4937,2747.1,2746.2,0.20570966]
[1763822961995,0.4937,2747.1,2746.3,7.28252556]
[1763822962320,0.4937,2747.1,2746.3,3.64126278]
[1763822963124,0.4937,2747.1,2746.0,0.90699264]
[1763822963392,0.1248,2746.4,2745.9,0.405504]
[1763822963546,0.4937,2747.1,2745.9,0.405504]
[1763822963836,0.1886,2747.2,2745.9,0.405504]
[1763822963837,0.4937,2747.0,2746.0,0.90699264]
[1763822964199,0.4937,2747.0,2746.1,3.64152798]
[1763822964947,0.1248,2746.2,2745.8,0.90699264]
[1763822965439,0.1248,2746.2,2745.5,3.64223648]
[1763822965652,0.6148,2746.2,2745.6,0.40935365]
[1763822965945,0.6148,2746.2,2745.5,3.64223648]
[1763822966128,0.6148,2746.2,2745.3,7.2851783]
[1763822966303,0.6148,2746.2,2745.4,0.90699264]
[1763822966845,0.1248,2746.2,2745.4,0.90699264]
[1763822967173,0.49,2746.1,2745.1,7.46570324]
[1763822967378,0.49,2746.1,2745.2,0.79170032]
[1763822967741,0.49,2746.1,2745.2,1.69869296]
[1763822968376,0.124,2746.3,2745.4,0.1]
[1763822968576,0.124,2746.3,2745.4,0.5513]
[1763822969245,0.6177,2746.3,2745.3,7.2851783]
[1763822969451,0.6177,2746.3,2745.1,4.27412722]
[1763822969783,0.4937,2746.2,2745.1,0.1801]
[1763822970546,0.4937,2746.2,2745.1,3.82290152]
[1763822970740,0.4937,2746.2,2745.1,4.56958143]
[1763822971281,0.4937,2746.2,2745.1,4.38948143]
[1763822971475,0.4937,2746.2,2745.1,0.74667991]
[1763822971681,0.3134,2745.2,2744.9,0.001]
[1763822971977,0.8071,2745.2,2744.9,0.001]
[1763822973241,0.1886,2745.7,2744.9,0.4523]
[1763822973857,0.6823,2745.7,2744.9,0.4523]
[1763822974052,0.8063,2745.7,2744.9,0.4523]
[1763822974286,0.8063,2745.7,2744.9,1.31690373]
[1763822974690,0.3126,2745.7,2744.9,1.31690373]
[1763822974901,0.4937,2745.6,2744.9,4.9600063]
[1763822976184,0.4937,2745.6,2744.9,4.50868568]
[1763822976554,0.1886,2746.0,2744.9,5.00008568]
[1763822976759,0.4567,2746.2,2745.0,1.40561141]
[1763822976957,0.4567,2746.2,2745.1,0.1984]
[1763822977981,0.4567,2746.2,2745.1,0.2984]
[1763822978286,0.4567,2746.2,2745.2,7.28544368]
[1763822978989,0.4686,2746.2,2745.2,7.75074368]
[1763822979179,0.4686,2746.2,2745.3,0.79491437]
[1763822979490,0.3229,2746.3,2745.3,1.26021437]
[1763822979697,0.4686,2746.2,2745.3,0.79491437]
[1763822980590,0.4686,2746.2,2745.4,7.75021294]
[1763822980962,0.4686,2746.2,2745.4,4.10775647]
[1763822981160,0.4686,2746.2,2745.4,4.63963473]
[1763822981694,0.4686,2746.2,2745.4,4.17433473]
[1763822982095,0.1338,2745.5,2745.1,0.1984]
[1763822982304,0.3287,2745.5,2745.0,3.64296435]
[1763822982511,0.0053,2745.0,2744.9,0.001]
[1763822983282,0.4739,2745.0,2744.9,0.001]
[1763822983821,0.0053,2745.0,2744.9,0.001]
[1763822984870,0.1949,2745.5,2744.9,0.4577]
[1763822985093,0.3189,2745.5,2744.9,0.4577]
[1763822985979,0.1949,2745.8,2745.0,0.03642987]
[1763822986210,0.6635,2745.8,2744.9,0.001]
[1763822986581,0.4686,2745.7,2744.9,0.001]
[1763822987508,0.1949,2745.8,2744.9,0.36543854]
[1763822987710,0.3189,2745.8,2744.9,0.93073854]
[1763822987887,0.4686,2746.0,2745.0,0.1]
[1763822988088,0.5926,2746.0,2745.0,0.5653]
[1763822988306,0.5926,2746.0,2745.1,0.2824]
[1763822988698,0.5926,2746.0,2745.2,7.75074368]
[1763822988908,0.5926,2746.0,2745.3,0.80331437]
[1763822989197,0.5662,2745.9,2745.3,0.80331437]
[1763822989398,0.0976,2745.9,2745.2,0.4653]
[1763822990822,0.0976,2745.9,2745.2,3.64269086]
[1763822991012,0.4686,2745.8,2745.2,3.64269086]
[1763822991212,0.4686,2745.8,2745.2,7.2854127]
[1763822992433,0.002,2747.9,2745.7,0.4567]
[1763822992633,0.002,2747.9,2745.2,7.2854127]
[1763822992634,0.4706,2747.6,2746.3,5.15949664]
[1763822992838,0.4706,2747.6,2746.7,7.28146502]
[1763822993000,0.4706,2747.6,2746.8,0.58001136]
[1763822993460,0.002,2747.6,2747.2,0.6391]
[1763822993836,0.002,2747.6,2746.8,1.487004]
[1763822994243,0.002,2747.6,2746.8,1.952304]
[1763822995133,0.002,2747.6,2746.9,3.64046743]
[1763822995336,0.002,2747.6,2747.0,0.55927714]
[1763822995648,0.4706,2747.3,2747.0,0.55927714]
[1763822995816,0.4706,2747.3,2746.7,3.64070034]
[1763822996904,0.002,2747.3,2746.8,0.4653]
[1763822997318,0.002,2747.3,2747.2,0.6391]
[1763822997734,0.002,2747.3,2747.2,1.1044]
[1763822999159,0.002,2747.3,2747.1,7.28040478]
[1763822999319,0.002,2747.3,2747.2,0.81873974]
[1763822999519,0.002,2747.3,2746.8,0.405504]
[1763822999846,0.002,2747.3,2746.8,0.870804]
[1763823000147,0.002,2747.3,2746.9,0.1]
[1763823000349,0.002,2747.3,2746.8,1.37229264]
[1763823000725,0.002,2747.3,2746.9,0.4653]
[1763823000929,0.002,2747.3,2747.2,0.6391]
[1763823001328,0.002,2747.3,2747.2,4.74446988]
[1763823001526,0.002,2747.3,2747.2,5.6829365]
[1763823002057,0.002,2747.3,2747.2,6.0884405]
[1763823002657,0.002,2747.3,2747.2,5.1176365]
[1763823003259,0.002,2747.3,2747.2,4.4785365]
[1763823003552,0.002,2747.3,2746.7,1.31249664]
[1763823003553,0.002,2747.3,2747.1,3.64013947]
[1763823003752,0.002,2747.3,2747.0,3.64029186]
[1763823004345,0.002,2747.3,2746.6,0.5653]
[1763823004544,0.002,2747.3,2746.6,3.64080133]
[1763823004545,0.4706,2747.3,2746.6,3.64080133]
[1763823005341,0.4706,2747.3,2746.5,0.90699264]
[1763823005542,0.4706,2747.3,2746.6,0.8189253]
[1763823007639,0.4706,2747.3,2746.6,4.45972715]
[1763823007940,0.4706,2747.3,2746.6,0.8189253]
[1763823008165,0.4706,2747.3,2746.5,4.54798432]
[1763823008567,0.4706,2747.3,2746.5,8.18898195]
[1763823009248,0.4706,2747.3,2746.3,3.64120357]
[1763823009473,0.4706,2747.3,2746.2,4.32218653]
[1763823009777,0.4706,2747.3,2746.2,8.77235898]
[1763823009940,0.4706,2747.3,2746.2,5.1309636]
[1763823010135,0.4706,2747.3,2746.2,8.27385898]
[1763823010340,0.4706,2747.3,2746.4,0.1]
[1763823010779,0.4706,2747.3,2746.2,8.77235898]
[1763823011001,0.4706,2747.3,2746.3,0.51801556]
[1763823011684,0.4706,2747.3,2746.4,3.6411302]
[1763823012188,0.002,2747.3,2746.5,0.63490997]
[1763823012566,0.002,2747.3,2746.6,0.4985]
[1763823012881,0.002,2747.3,2746.8,0.1]
[1763823013249,0.002,2747.3,2746.8,0.5985]
[1763823013447,0.002,2747.3,2746.8,0.4985]
[1763823013856,0.002,2747.3,2746.9,3.64046743]
[1763823014068,0.002,2747.3,2747.0,0.77795646]
[1763823014472,0.002,2747.3,2746.5,7.28197758]
[1763823014473,0.4546,2747.0,2746.5,7.28197758]
[1763823014751,0.3003,2747.2,2746.5,7.28197758]
[1763823015565,0.3003,2747.2,2746.5,3.64097995]
[1763823015877,0.3003,2747.2,2746.5,7.28197758]
[1763823016641,0.3003,2747.2,2746.5,7.28297758]
[1763823016877,0.002,2747.3,2746.6,1.27664776]
[1763823017056,0.002,2747.3,2746.7,0.5985]
[1763823017468,0.002,2747.3,2747.2,0.6414]
[1763823017669,0.002,2747.3,2747.2,0.4505]
[1763823019086,0.002,2747.3,2747.2,4.09056988]
[1763823019382,0.002,2747.3,2747.2,5.13771475]
[1763823020346,0.002,2747.3,2747.2,5.23771475]
[1763823020754,0.002,2747.3,2747.2,5.64321875]
[1763823021279,0.002,2747.3,2747.2,5.13771475]
[1763823022488,0.002,2747.3,2747.2,5.23771475]
[1763823023063,0.002,2747.3,2747.2,5.64321875]
[1763823023476,0.002,2747.3,2747.2,11.91339592]
[1763823023676,0.002,2747.3,2747.2,11.87699523]
[1763823023855,0.002,2747.3,2747.2,6.57421139]
[1763823024190,0.002,2747.3,2747.2,6.67421139]
[1763823024886,0.002,2747.3,2747.2,12.00099523]
[1763823028191,0.002,2747.3,2747.2,5.54620739]
[1763823028378,0.002,2747.3,2747.2,6.14470739]
[1763823028820,0.7291,2747.3,2746.6,7.28167545]
[1763823029118,0.7291,2747.3,2746.5,7.28296023]
[1763823029119,0.0047,2747.2,2746.5,7.28296023]
[1763823029482,0.4814,2747.2,2746.5,7.28296023]
[1763823030401,0.4767,2747.2,2746.5,3.64195394]
[1763823030563,0.4767,2747.2,2746.5,0.001]
[1763823030770,0.4767,2747.2,2746.5,4.00620521]
[1763823030971,0.4767,2747.2,2746.5,7.64720284]
[1763823031303,0.002,2747.3,2746.5,7.74720284]
[1763823031805,0.002,2747.3,2746.5,8.24570284]
[1763823032299,0.4787,2747.3,2746.5,8.24570284]
[1763823032500,0.4787,2747.3,2746.6,0.82457028]
[1763823032875,0.4787,2747.3,2746.7,7.28146502]
[1763823033703,0.4787,2747.3,2746.7,3.64073251]
[1763823034708,0.2526,2746.8,2746.6,0.82457028]
[1763823034909,0.2526,2746.8,2746.5,0.001]
[1763823035482,0.4767,2747.1,2746.5,0.4995]
[1763823035701,0.4878,2747.3,2746.5,0.4995]
[1763823035917,0.4878,2747.3,2746.5,0.001]
[1763823036117,0.002,2747.3,2746.5,0.001]
[1763823036307,0.002,2747.3,2746.8,0.1]
[1763823036507,0.002,2747.3,2747.2,0.4827]
[1763823036902,0.002,2747.3,2747.2,4.68876988]
[1763823037102,0.002,2747.3,2747.2,6.53864807]
[1763823037282,0.002,2747.3,2747.2,6.94415207]
[1763823037690,0.002,2747.3,2747.2,6.84415207]
[1763823038816,0.002,2747.3,2747.2,6.94415207]
[1763823040609,0.002,2747.3,2747.2,10.95155276]
[1763823040922,0.002,2747.3,2747.2,10.91515207]
[1763823041499,0.002,2747.3,2747.2,7.06815207]
[1763823041698,0.002,2747.3,2747.2,6.84415207]
[1763823042028,0.002,2747.3,2747.2,6.37815207]
[1763823042674,0.002,2747.3,2747.2,4.58295543]
[1763823042880,0.002,2747.3,2747.2,3.64006988]
[1763823043672,0.002,2747.3,2747.0,8.18766246]
[1763823043859,0.002,2747.3,2747.0,8.28766246]
[1763823045975,0.4579,2747.1,2747.0,3.64024821]
[1763823046143,0.4579,2747.1,2746.8,3.64055519]
[1763823046350,0.7323,2747.1,2746.8,3.64055519]
[1763823046763,0.7323,2747.1,2746.8,7.28115516]
[1763823047334,0.7323,2747.1,2746.8,8.00927068]
[1763823047874,0.4579,2747.1,2746.8,8.00927068]
[1763823048593,0.002,2747.3,2747.0,0.4582]
[1763823048789,0.002,2747.3,2747.2,0.4582]
[1763823049160,0.002,2747.3,2747.2,0.9087]
[1763823049371,0.002,2747.3,2747.2,1.0087]
[1763823049950,0.002,2747.3,2747.2,4.64876988]
[1763823050149,0.002,2747.3,2747.2,5.24744699]